fUSD/lending_fUSD_20240720
["ID","MTS","AMOUNT","RATE_DAILY","PERIOD"]
[332726598,1721485837794,-155.0,0.00013165,2]
[332726599,1721485837804,-177.51,0.00013193,2]
[332726600,1721485837813,-171.36,0.00013281,2]
[332726601,1721485837822,-539.02654818,0.00013489,2]
[332726602,1721485837831,-300.0,0.0001356,2]
[332726603,1721485837841,-211.93560102,0.00013561,2]
[332726604,1721485837852,-3805.88771306,0.00013561,2]
[332726605,1721485837863,-1498.39135129,0.00013561,2]
[332726606,1721485837893,-264.24,0.00013561,2]
[332726607,1721485838002,-3756.28343463,0.00013561,2]
[332726608,1721485838012,-2701.6301558,0.00013579,2]
[332726609,1721485838022,-200.32204778,0.00013579,2]
[332726610,1721485838032,-329.44926346,0.00013579,2]
[332726611,1721485838046,-439.2666824,0.00013579,2]
[332726612,1721485838055,-1000.0,0.0001358,2]
[332726613,1721485838064,-306.17,0.0001358,2]
[332726614,1721485838075,-709.2503867,0.0001358,2]
[332726615,1721485838084,-317.37,0.00013589,2]
[332726616,1721485838093,-3000.0,0.000136,2]
[332726617,1721485838103,-200.0,0.000136,2]
[332726618,1721485838113,-2500.0,0.00013661,2]
[332726619,1721485838122,-500.0,0.00013662,2]
[332726620,1721485838131,-281.33108426,0.0001367,2]
[332726621,1721485838141,-7701.32726757,0.0001368,2]
[332726622,1721485838154,-408.66224937,0.0001368,2]
[332726624,1721485838165,-39611.04064033,0.0001368,2]
[332726627,1721485838185,-52278.96984273,0.0001368,2]
[332726629,1721485838194,-161.38,0.00013699,2]
[332726631,1721485838203,-200.0,0.00013699,2]
[332726633,1721485838213,-4564.16549304,0.00013699,2]
[332726636,1721485838231,-796.44791203,0.00013699,2]
[332726719,1721485840021,-1388.75556196,0.00013699,2]
[332726720,1721485840187,-1915.98789631,0.00013699,2]
[332727052,1721485846555,-174.85149445,0.00012995,2]
[332727053,1721485846564,-358.66047374,0.00013024,2]
[332727055,1721486096985,150.93,0.00010959,2]
[332727056,1721486107735,754.69,0.00010959,2]
[332727059,1721486156307,300.06839446,0.00010959,2]
[332727060,1721486173688,1050.0,0.00010959,2]
[332727061,1721486178272,553.7,0.00010473,2]
[332727064,1721486390576,1021.12761227,0.00011959,2]
[332727068,1721486631714,150.0,0.00012008,2]
[332727072,1721486652586,-500.0,0.00012035,2]
[332727074,1721486674411,200.0,0.00012029,2]
[332727076,1721486690061,526.01,0.00010023,2]
[332727078,1721486727717,1879.80464216,0.00011959,2]
[332727079,1721486739953,250.0,0.00011961,2]
[332727082,1721486786966,1836.58,0.0001196,2]
[332727092,1721486887203,158.95182202,0.00011959,2]
[332727095,1721486911442,753.59338141,0.00011959,2]
[332727165,1721486955091,597.80485648,0.00011959,2]
[332727173,1721487005920,155.91401775,0.00011959,2]
[332727178,1721487023946,156.48758241,0.00011959,2]
[332727179,1721487025647,156.25,0.00011977,2]
[332727188,1721487032110,-529.24457597,0.00012045,2]
[332727189,1721487032122,-270.75542403,0.00012045,2]
[332727190,1721487032131,-105.62,0.00012046,2]
[332727191,1721487032172,-894.07,0.00012046,2]
[332727192,1721487032181,-2244.84,0.00012047,2]
[332727193,1721487032191,-1852.42,0.00012077,2]
[332727194,1721487032201,-150.48,0.00012111,2]
[332727195,1721487032210,-169.63,0.00012163,2]
[332727196,1721487032219,-200.0,0.00012197,2]
[332727197,1721487032229,-526.01,0.00012287,2]
[332727198,1721487032239,-499.47462034,0.0001236,2]
[332727199,1721487032248,-529.59050397,0.0001236,2]
[332727200,1721487032258,-300.0,0.0001239,2]
[332727201,1721487032267,-1984.41,0.00012391,2]
[332727202,1721487032276,-499.99,0.00012391,2]
[332727203,1721487032286,-553.58196334,0.00012391,2]
[332727204,1721487032295,-150.77994075,0.00012397,2]
[332727219,1721487038463,-6105.46005925,0.00012397,2]
[332727220,1721487038472,-159.35172731,0.0001246,2]
[332727221,1721487038482,-159.35172731,0.0001246,2]
[332727222,1721487038492,-150.0,0.00012539,2]
[332727223,1721487038502,-150.99,0.0001254,2]
[332727224,1721487038513,-830.56510516,0.0001254,2]
[332727225,1721487038549,-283.83287331,0.0001254,2]
[332727226,1721487040169,-7609.65202153,0.0001254,2]
[332727227,1721487040179,-318.57,0.0001254,2]
[332727228,1721487040189,-164.9,0.00012599,2]
[332727229,1721487040199,-164.9,0.00012615,2]
[332727230,1721487040208,-164.9,0.00012631,2]
[332727231,1721487040218,-164.9,0.00012647,2]
[332727232,1721487040227,-164.9,0.00012662,2]
[332727233,1721487040237,-346.96801926,0.00012681,2]
[332727234,1721487040246,-155.0,0.0001269,2]
[332727235,1721487040258,-339.73670493,0.00012883,2]
[332727236,1721487040268,-375.04476694,0.00012924,2]
[332727237,1721487040278,-281.33108426,0.00012995,2]
[332727238,1721487040289,-8051.34740309,0.00013024,2]
[332727239,1721487040312,-105.50372099,0.00013024,2]
[332727240,1721487040321,-174.38964159,0.00013133,2]
[332727241,1721487040331,-173.43,0.00013349,2]
[332727242,1721487040340,-156.25,0.00013474,2]
[332727243,1721487040349,-405.50493687,0.00013499,2]
[332727383,1721487048590,-337.88,0.00013499,2]
[332727384,1721487048603,-266.8334895,0.00013499,2]
[332727385,1721487048616,-39450.19077363,0.00013499,2]
[332727386,1721487048627,-180.18214177,0.00013499,2]
[332727387,1721487048638,-800.0,0.00013551,2]
[332727388,1721487048647,-3000.0,0.0001356,2]
[332727389,1721487048657,-1825.63097981,0.0001357,2]
[332727390,1721487048667,-2836.71230134,0.00013579,2]
[332727391,1721487048676,-420.0,0.00013597,2]
[332727392,1721487048687,-1000.0,0.00013599,2]
[332727393,1721487048696,-84013.28380337,0.00013599,2]
[332727394,1721487048864,-1014.87226965,0.00013599,2]
[332727404,1721487052246,452.8,0.00010959,2]
[332727455,1721487382233,489.17,0.00010741,2]
[332727472,1721487796365,792.0,0.00014,5]
[332727486,1721487945796,464.71,0.00010659,2]
[332727488,1721487971867,2476.58807046,0.00011959,2]
[332727492,1721488031777,3028.90317686,0.00011959,2]
[332727493,1721488077092,20356.71080048,0.00011959,2]
[332727495,1721488122682,155.08205591,0.00011959,2]
[332727497,1721488124444,158.78815393,0.00011959,2]
[332727498,1721488129823,346.36345517,0.00011959,2]
[332727499,1721488131934,181.48707646,0.00011959,2]
[332727500,1721488132864,234.90364031,0.00011959,2]
[332727501,1721488141458,155.0,0.00011959,2]
[332727502,1721488145585,291.09887402,0.00011959,2]
[332727503,1721488152443,155.0,0.00011959,2]
[332727523,1721488171060,20356.71080048,0.00011959,2]
[332727525,1721488203064,150.0,0.00011959,2]
[332727526,1721488203261,150.0,0.00011959,2]
[332727527,1721488203445,152.86390281,0.00011959,2]
[332727529,1721488219276,181.48707646,0.00011959,2]
[332727530,1721488224784,158.78815393,0.00011959,2]
[332727547,1721488232272,-150.48,0.00012489,2]
[332727548,1721488232282,-997.571514,0.00012552,2]
[332727549,1721488232293,-396.48017172,0.00012552,2]
[332727550,1721488232336,-691.41155915,0.00012552,2]
[332727551,1721488232556,-3106.0090687,0.00012552,2]
[332727591,1721488238648,-3060.19716038,0.00012552,2]
[332727592,1721488238658,-731.2709819,0.00012652,2]
[332727593,1721488238669,-268.7290181,0.00012652,2]
[332727594,1721488238678,-156.81800382,0.00012658,2]
[332727595,1721488238689,-8.01199618,0.00012658,2]
[332727596,1721488238698,-155.0,0.00012696,2]
[332727597,1721488238707,-301.2901,0.00012822,2]
[332727598,1721488238716,-407.65790382,0.00012922,2]
[332727599,1721488238727,-57.05209618,0.00012922,2]
[332727600,1721488238737,-155.206925,0.00012924,2]
[332727601,1721488238746,-155.0,0.00013133,2]
[332727602,1721488238757,-228.74,0.0001317,2]
[332727603,1721488238768,-126.54847092,0.00013199,2]
[332727604,1721488238792,-28.45152908,0.00013199,2]
[332727605,1721488238801,-539.02654818,0.00013199,2]
[332727606,1721488238811,-132.96856403,0.00013288,2]
[332727607,1721488238822,-87.48143597,0.00013288,2]
[332727608,1721488238831,-327.59957455,0.00013303,2]
[332727609,1721488238844,-36.05969368,0.00013303,2]
[332727610,1721488238853,-385.96925274,0.00013319,2]
[332727611,1721488238863,-174.85149445,0.00013378,2]
[332727612,1721488238872,-98.74405854,0.00013398,2]
[332727613,1721488238884,-21784.63601466,0.00013398,2]
[332727616,1721488240842,-11925.25136945,0.00013398,2]
[332727617,1721488240854,-373.21512209,0.00013398,2]
[332727618,1721488240865,-355.49250387,0.00013398,2]
[332727619,1721488240877,-2201.54007425,0.00013398,2]
[332727620,1721488240904,-4232.33874944,0.00013398,2]
[332727623,1721488242567,291.09887402,0.00011959,2]
[332727635,1721488273565,20356.71080048,0.00011959,2]
[332727641,1721488305647,181.48707646,0.00011959,2]
[332727642,1721488316577,158.78815393,0.00011959,2]
[332727643,1721488319952,181.48707646,0.00011959,2]
[332727644,1721488331650,184.22,0.00010099,2]
[332727645,1721488345785,158.78815393,0.00011959,2]
[332727646,1721488358579,290.05078467,0.00011959,2]
[332727647,1721488371338,20356.71080048,0.00010099,2]
[332727650,1721488423121,305.53581994,0.00011959,2]
[332727651,1721488435143,247.20561576,0.00010099,2]
[332727653,1721488445959,162.41487813,0.00011959,2]
[332727654,1721488451791,196.11090668,0.00010099,2]
[332727655,1721488457439,176.84,9.974e-05,2]
[332727656,1721488457649,176.84,0.00011637,2]
[332727658,1721488471561,3591.97324444,0.00011959,2]
[332727662,1721488511289,566.64,0.00010528,2]
[332727671,1721488810879,750.0,0.00011959,2]
[332727677,1721489067029,176.84,9.664e-05,2]
[332727682,1721489137715,578.98,0.0001017,2]
[332727683,1721489142611,259.71872886,0.00011714,2]
[332727684,1721489154574,13424.11361999,6.94e-05,2]
[332727685,1721489183227,521.65741776,0.00011714,2]
[332727686,1721489185268,273.4859839,8.412e-05,2]
[332727690,1721489234232,521.65741776,8.412e-05,2]
[332727693,1721489256000,2379.74333492,0.00010196,2]
[332727717,1721489340810,162.16887086,0.00011959,2]
[332727814,1721489432400,-150.0,0.00012081,2]
[332727815,1721489432410,-250.0,0.00012104,2]
[332727816,1721489432422,-175.73256107,0.00012119,2]
[332727817,1721489432438,-324.26743893,0.00012119,2]
[332727818,1721489432448,-189.01,0.00012141,2]
[332727819,1721489432457,-303.97,0.00012171,2]
[332727820,1721489432469,-682.75256107,0.00012202,2]
[332727821,1721489432502,-317.24743893,0.00012202,2]
[332727822,1721489432512,-168.73,0.00012407,2]
[332727823,1721489432521,-578.98,0.00012434,2]
[332727824,1721489432531,-150.0,0.00012501,2]
[332727825,1721489432542,-157.81,0.00012541,2]
[332727826,1721489432551,-157.81,0.00012562,2]
[332727827,1721489432561,-499.99,0.00012581,2]
[332727828,1721489432570,-157.81,0.00012583,2]
[332727829,1721489432579,-157.81,0.00012604,2]
[332727830,1721489432589,-363.65926823,0.00012681,2]
[332727831,1721489432599,-342.03667471,0.00012749,2]
[332727832,1721489432608,-150.0,0.00012849,2]
[332727833,1721489432617,-478.52187908,0.000129,2]
[332727834,1721489432629,-7607.62142092,0.000129,2]
[332727835,1721489432639,-163.92127245,0.00012928,2]
[332727836,1721489432648,-281.33108426,0.00012995,2]
[332727837,1721489432658,-150.0,0.00012999,2]
[332727838,1721489432668,-500.0,0.00013,2]
[332727839,1721489432677,-500.0,0.00013,2]
[332727840,1721489432687,-500.0,0.00013,2]
[332727841,1721489432696,-500.0,0.00013,2]
[332727842,1721489432706,-500.0,0.00013,2]
[332727843,1721489432717,-500.0,0.00013,2]
[332727844,1721489432728,-215.03304229,0.00013,2]
[332727845,1721489432751,-284.96695771,0.00013,2]
[332727846,1721489432761,-296.10104148,0.00013,2]
[332727847,1721489432775,-203.89895852,0.00013,2]
[332727848,1721489432784,-500.0,0.00013,2]
[332727849,1721489432794,-500.0,0.00013,2]
[332727850,1721489432803,-500.0,0.00013,2]
[332727852,1721489432813,-500.0,0.00013,2]
[332727853,1721489432822,-350.38,0.00013,2]
[332727855,1721489432831,-500.0,0.00013,2]
[332727857,1721489432841,-500.0,0.00013,2]
[332727859,1721489432853,-297.14,0.00013,2]
[332727862,1721489432864,-150.0,0.00013196,2]
[332727864,1721489432874,-2500.0,0.00013198,2]
[332727865,1721489432884,-363.3224,0.00013198,2]
[332727866,1721489432893,-220.84,0.00013205,2]
[332727867,1721489432903,-3000.0,0.0001326,2]
[332727868,1721489432912,-180.18214176,0.00013298,2]
[332727869,1721489432921,-151.0,0.00013298,2]
[332727870,1721489432932,-296.09660795,0.00013298,2]
[332727871,1721489432941,-162.40005167,0.00013298,2]
[332727872,1721489432952,-426.72716346,0.00013298,2]
[332727874,1721489432962,-9722.4317,0.00013298,2]
[332727876,1721489432972,-8890.1113,0.00013298,2]
[332727878,1721489432982,-7756.1913,0.00013298,2]
[332727880,1721489432991,-4044.97161507,0.00013298,2]
[332727882,1721489433004,-4411.33258493,0.00013298,2]
[332727883,1721489433013,-41446.57420382,0.00013298,2]
[332727884,1721489433025,-716.59388063,0.00013298,2]
[332727885,1721489433036,-1931.16017973,0.00013298,2]
[332727890,1721489438379,-775.87935903,0.00013298,2]
[332727891,1721489438481,-588.88349647,0.00013298,2]
[332727892,1721489438566,-3172.36840359,0.00013298,2]
[332727893,1721489438578,-51368.54047673,0.00013298,2]
[332727894,1721489438588,-1000.0,0.00013298,2]
[332727895,1721489438598,-66415.804,0.00013298,2]
[332727896,1721489438608,-7500.0,0.00013298,2]
[332727897,1721489438619,-3398.95100233,0.00013378,2]
[332727898,1721489438628,-300.61929812,0.00013388,2]
[332727899,1721489438638,-892.26419646,0.00013395,2]
[332727900,1721489438647,-2536.4390687,0.00013397,2]
[332727901,1721489438657,-654.82093907,0.00013397,3]
[332727902,1721489438667,-9886.79965626,0.00013398,2]
[332727903,1721489438749,-450.95372915,0.00013398,2]
[332727904,1721489438761,-2348.40046312,0.00013398,2]
[332728098,1721489441349,-466.38107,0.00013398,2]
[332728099,1721489441361,-11458.47093619,0.00013398,2]
[332728100,1721489441374,-1149.9296693,0.00013398,2]
[332728101,1721489441386,-7627.54303608,0.00013398,2]
[332728102,1721489441399,-6195.30092757,0.00013398,2]
[332728103,1721489441411,-4478.44625082,0.00013398,2]
[332728104,1721489441422,-13773.26899395,0.00013398,2]
[332728105,1721489441498,-340.74,0.00013398,2]
[332728106,1721489441511,-17821.716,0.00013398,2]
[332728107,1721489441523,-1546.47906351,0.00013398,2]
[332728108,1721489441535,-1333.28416,0.00013398,2]
[332728109,1721489441547,-311.33286998,0.00013398,2]
[332728143,1721489443759,-301.61,0.00012586,2]
[332728145,1721489443773,-363.65926823,0.00012666,2]
[332728147,1721489443783,-2534.35453177,0.00013398,2]
[332728152,1721489444326,-561.64706905,0.00013398,2]
[332728153,1721489444340,-71075.32706133,0.00013398,2]
[332728154,1721489444353,-13243.88568761,0.00013398,2]
[332728155,1721489444367,-6690.018384,0.00013398,2]
[332728192,1721489449294,-6609.36701024,0.00013298,2]
[332728197,1721489469765,400.0,0.000133,4]
[332728198,1721489471709,900.0,0.000134,4]
[332728200,1721489473822,1300.0,0.000135,4]
[332728201,1721489475932,1800.0,0.000136,4]
[332728202,1721489478041,2300.0,0.000137,5]
[332728203,1721489480384,400.0,0.000138,5]
[332728204,1721489482277,400.0,0.000139,5]
[332728214,1721489688177,594.62,0.00010563,2]
[332728217,1721489739567,176.84,9.969e-05,2]
[332728218,1721489745620,300.12954062,0.00010563,2]
[332728219,1721489748049,155.39134407,0.00010563,2]
[332728220,1721489755195,291.0324454,0.00010563,2]
[332728236,1721489876743,205.55,0.00018849,30]
[332728252,1721490225853,572.96,0.00010279,2]
[332728261,1721490284409,300.12954062,0.00010279,2]
[332728262,1721490312685,7794.96391521,0.00010279,2]
[332728263,1721490319031,4420.43924054,0.00010279,2]
[332728265,1721490346990,796.88409197,0.00010279,2]
[332728269,1721490373077,317.01651927,0.00010279,2]
[332728271,1721490390891,160.19405463,0.00010279,2]
[332728300,1721490532296,300.12954062,0.00010279,2]
[332728302,1721490539015,6119.65192313,0.00010279,2]
[332728303,1721490544004,283.06938828,0.00010279,2]
[332728322,1721490546752,203.13618939,0.00011959,2]
[332728323,1721490554235,243.17,0.00012026,2]
[332728324,1721490559244,291.09887402,0.00010279,2]
[332728325,1721490560986,796.88409197,0.00010279,2]
[332728326,1721490569360,-250.0,0.00012144,2]
[332728327,1721490569384,-290.05974808,0.00012144,2]
[332728328,1721490569407,-259.8,0.00012219,2]
[332728329,1721490569430,-1000.0,0.00012249,2]
[332728330,1721490569454,-150.48,0.00012289,2]
[332728331,1721490569477,-4192.80025192,0.0001229,2]
[332728388,1721490611594,-5666.41188517,0.0001236,2]
[332728389,1721490611615,-356.42240482,0.00012391,2]
[332728390,1721490611636,-155.50295829,0.00012391,2]
[332728391,1721490611657,-155.0,0.00012391,2]
[332728392,1721490611679,-202.31636324,0.00012391,2]
[332728393,1721490611700,-181.66113108,0.00012391,2]
[332728394,1721490611721,-8428.84845501,0.00012392,2]
[332728395,1721490611741,-301.2231763,0.00012459,2]
[332728396,1721490611762,-7564.17944431,0.00012459,2]
[332728397,1721490611784,-291.09887402,0.00012459,2]
[332728398,1721490611807,-150.0,0.00012501,2]
[332728399,1721490611828,-30368.13605285,0.00012525,2]
[332728402,1721490631918,-280.56667432,0.00012543,2]
[332728403,1721490631929,-292.39332568,0.00012543,2]
[332728404,1721490631940,-1266.87800095,0.0001269,2]
[332728405,1721490631950,-210.6175587,0.00012818,2]
[332728406,1721490631960,-195.80245042,0.00012826,2]
[332728407,1721490631969,-158.64569138,0.00012826,2]
[332728408,1721490631979,-499.99,0.00012826,2]
[332728409,1721490631989,-281.33108426,0.000129,2]
[332728410,1721490631999,-174.85149445,0.00012924,2]
[332728411,1721490632008,-702.26829574,0.00012924,2]
[332728412,1721490632018,-539.02654818,0.00012924,2]
[332728413,1721490632027,-315.66972169,0.00012924,2]
[332728414,1721490632036,-383.70523226,0.00012985,2]
[332728415,1721490632046,-150.0,0.00012999,2]
[332728416,1721490632056,-500.0,0.00013,2]
[332728417,1721490632067,-500.0,0.00013,2]
[332728418,1721490632077,-500.0,0.00013,2]
[332728419,1721490632086,-500.0,0.00013,2]
[332728420,1721490632096,-500.0,0.00013,2]
[332728421,1721490632106,-430.49,0.00013,2]
[332728422,1721490632115,-500.0,0.00013,2]
[332728423,1721490632125,-500.0,0.00013,2]
[332728424,1721490632134,-500.0,0.00013,2]
[332728425,1721490632143,-500.0,0.00013,2]
[332728426,1721490632153,-324.05,0.00013,2]
[332728427,1721490632163,-6583.6712,0.00013097,2]
[332728428,1721490632172,-1000.0,0.00013097,2]
[332728429,1721490632182,-2500.0,0.00013097,2]
[332728430,1721490632195,-427.32230131,0.00013098,2]
[332728431,1721490632205,-4705.7756,0.00013098,2]
[332728432,1721490632217,-155.0,0.00013165,2]
[332728433,1721490632226,-200.41286541,0.00013188,2]
[332728434,1721490632236,-1238.01625717,0.00013196,2]
[332728435,1721490632245,-329332.17625812,0.00013197,2]
[332728436,1721490632255,-621.27,0.00013197,2]
[332728437,1721490632264,-245000.0,0.00013198,2]
[332728438,1721490632274,-7500.0,0.00013198,2]
[332728439,1721490632283,-1014.0,0.000132,2]
[332728440,1721490632294,-3000.0,0.0001326,2]
[332728442,1721490632304,-427.32230128,0.00013274,2]
[332728444,1721490632314,-483.0080244,0.00013297,2]
[332728446,1721490632324,-151.0,0.00013298,2]
[332728447,1721490632334,-100000.0,0.00013298,2]
[332728448,1721490632343,-922.5447975,0.00013397,2]
[332728449,1721490632353,-853.67493791,0.00013397,2]
[332728450,1721490632363,-127897.5051666,0.00013414,2]
[332728451,1721490632372,-23530.9023978,0.00013414,2]
[332728452,1721490632382,-16028.9403012,0.00013414,2]
[332728453,1721490632392,-151.0,0.00013414,2]
[332728454,1721490632402,-151.0,0.00013414,2]
[332728455,1721490632412,-709.2503867,0.00013434,2]
[332728456,1721490632421,-427.32230128,0.00013449,2]
[332728457,1721490632431,-173.43,0.00013479,2]
[332728458,1721490632442,-483.0080244,0.00013499,2]
[332728459,1721490632452,-599.76372935,0.00013499,2]
[332728460,1721490632462,-5637.59258756,0.0001351,2]
[332728461,1721490632472,-10019.51499083,0.00013513,2]
[332728462,1721490632482,-243.17,0.00013529,2]
[332728463,1721490632492,-23918.0,0.00013562,2]
[332728464,1721490632501,-151.0,0.00013562,2]
[332728465,1721490632511,-500.0,0.00013589,2]
[332728466,1721490632520,-210.36474349,0.00013598,2]
[332728467,1721490632530,-5939.92362757,0.00013598,2]
[332728468,1721490632539,-516.0,0.00013599,2]
[332728469,1721490632549,-209.76513473,0.00013599,2]
[332728470,1721490632559,-1000.0,0.00013599,2]
[332728471,1721490632569,-1000.0,0.00013599,2]
[332728472,1721490632579,-1000.0,0.00013599,2]
[332728473,1721490632589,-1000.0,0.00013599,2]
[332728474,1721490632599,-1000.0,0.00013599,2]
[332728475,1721490632608,-1000.0,0.00013599,2]
[332728476,1721490632618,-1000.0,0.00013599,2]
[332728477,1721490632628,-1000.0,0.00013599,2]
[332728478,1721490632638,-1000.0,0.00013599,2]
[332728479,1721490632647,-1000.0,0.00013599,2]
[332728480,1721490632657,-1000.0,0.00013599,2]
[332728481,1721490632667,-1000.0,0.00013599,2]
[332728482,1721490632676,-1000.0,0.00013599,2]
[332728483,1721490632687,-1000.0,0.00013599,2]
[332728484,1721490632697,-1000.0,0.00013599,2]
[332728485,1721490632707,-1000.0,0.00013599,2]
[332728486,1721490632716,-1000.0,0.00013599,2]
[332728487,1721490632726,-1000.0,0.00013599,2]
[332728488,1721490632735,-1000.0,0.00013599,2]
[332728489,1721490632745,-1000.0,0.00013599,2]
[332728490,1721490632754,-1000.0,0.00013599,2]
[332728491,1721490632764,-186.2510048,0.00013599,2]
[332728492,1721490632773,-235.29419216,0.00013599,2]
[332728493,1721490632784,-2773.1920686,0.00013615,2]
[332728494,1721490632797,-427.32230128,0.00013625,2]
[332728495,1721490632807,-1393.55603812,0.00013648,2]
[332728496,1721490632816,-222.50712563,0.00013698,2]
[332728497,1721490632826,-540.62993984,0.00013698,2]
[332728498,1721490632835,-200.0,0.00013699,2]
[332728499,1721490632845,-160.22,0.00013699,2]
[332728500,1721490632854,-1000.0,0.00013699,2]
[332728501,1721490632865,-1000.0,0.00013699,2]
[332728502,1721490632884,-1000.0,0.00013699,2]
[332728503,1721490632895,-1000.0,0.00013699,2]
[332728504,1721490632906,-1000.0,0.00013699,2]
[332728505,1721490632916,-1000.0,0.00013699,2]
[332728506,1721490632927,-1000.0,0.00013699,2]
[332728507,1721490632938,-1000.0,0.00013699,2]
[332728508,1721490632948,-1000.0,0.00013699,2]
[332728509,1721490632958,-1000.0,0.00013699,2]
[332728510,1721490632968,-1000.0,0.00013699,2]
[332728511,1721490632978,-1000.0,0.00013699,2]
[332728512,1721490632988,-1000.0,0.00013699,2]
[332728513,1721490632997,-1000.0,0.00013699,2]
[332728514,1721490633009,-1000.0,0.00013699,2]
[332728515,1721490633019,-1000.0,0.00013699,2]
[332728516,1721490633029,-1000.0,0.00013699,2]
[332728517,1721490633038,-1000.0,0.00013699,2]
[332728518,1721490633048,-1000.0,0.00013699,2]
[332728519,1721490633058,-1000.0,0.00013699,2]
[332728520,1721490633067,-1000.0,0.00013699,2]
[332728521,1721490633077,-1000.0,0.00013699,2]
[332728522,1721490633087,-1000.0,0.00013699,2]
[332728523,1721490633097,-1000.0,0.00013699,2]
[332728524,1721490633106,-1000.0,0.00013699,2]
[332728525,1721490633116,-1000.0,0.00013699,2]
[332728526,1721490633126,-1000.0,0.00013699,2]
[332728527,1721490633135,-1000.0,0.00013699,2]
[332728528,1721490633145,-1000.0,0.00013699,2]
[332728529,1721490633350,-1000.0,0.00013699,2]
[332728530,1721490633412,-1000.0,0.00013699,2]
[332728531,1721490633422,-1000.0,0.00013699,2]
[332728532,1721490633432,-1000.0,0.00013699,2]
[332728533,1721490633443,-1000.0,0.00013699,2]
[332728534,1721490633453,-1000.0,0.00013699,2]
[332728535,1721490633462,-1000.0,0.00013699,2]
[332728536,1721490633472,-1000.0,0.00013699,2]
[332728537,1721490633481,-1000.0,0.00013699,2]
[332728538,1721490633490,-1000.0,0.00013699,2]
[332728539,1721490633500,-1000.0,0.00013699,2]
[332728540,1721490633509,-1000.0,0.00013699,2]
[332728541,1721490633519,-1000.0,0.00013699,2]
[332728542,1721490633529,-1000.0,0.00013699,2]
[332728543,1721490633539,-1000.0,0.00013699,2]
[332728544,1721490633549,-1000.0,0.00013699,2]
[332728545,1721490633559,-1000.0,0.00013699,2]
[332728546,1721490633568,-1000.0,0.00013699,2]
[332728547,1721490633578,-1000.0,0.00013699,2]
[332728548,1721490633588,-1000.0,0.00013699,2]
[332728549,1721490633598,-1000.0,0.00013699,2]
[332728550,1721490633607,-1000.0,0.00013699,2]
[332728551,1721490633616,-1000.0,0.00013699,2]
[332728552,1721490633625,-1000.0,0.00013699,2]
[332728553,1721490633635,-1000.0,0.00013699,2]
[332728554,1721490633644,-1000.0,0.00013699,2]
[332728555,1721490633654,-1000.0,0.00013699,2]
[332728556,1721490633664,-1000.0,0.00013699,2]
[332728557,1721490633674,-1000.0,0.00013699,2]
[332728558,1721490633683,-1000.0,0.00013699,2]
[332728559,1721490633693,-1000.0,0.00013699,2]
[332728560,1721490633705,-1000.0,0.00013699,2]
[332728561,1721490633715,-1000.0,0.00013699,2]
[332728562,1721490633724,-1000.0,0.00013699,2]
[332728563,1721490633734,-907.0,0.00013699,2]
[332728564,1721490633743,-151.0,0.00013699,2]
[332728565,1721490633752,-151.0,0.00013699,2]
[332728566,1721490633762,-151.0,0.00013699,2]
[332728567,1721490633771,-161.0,0.00013699,2]
[332728568,1721490633781,-151.0,0.00013699,2]
[332728569,1721490633793,-151.0,0.00013699,2]
[332728570,1721490633803,-151.0,0.00013699,2]
[332728571,1721490633812,-151.0,0.00013699,2]
[332728572,1721490633821,-151.0,0.00013699,2]
[332728573,1721490633830,-151.0,0.00013699,2]
[332728574,1721490633841,-151.0,0.00013699,2]
[332728575,1721490633851,-151.0,0.00013699,2]